Cogmind - Beta 12 @@@ ROGUE MODE // 2023.04.27 @ 18:31:04 Player: Mr Goldstein Result: Self-destructed Performance ------------- Evolutions (3) 1500 Regions Visited (5) 1000 Robots Destroyed (4) 20 Value Destroyed (40) 40 Prototype IDs (0) 0 Alien Tech Used (0) 0 Bonus (470) 470 TOTAL SCORE: 3030 Bonus ------- Pacifist 470 Cogmind --------- Core Integrity 682/700 Matter 228/300 Energy 100/100 System Corruption 1% Temperature Cool (0) Movement Core (50) Location -7/Storage Parts ------- > --- POWER (2) -------- (None) > --- PROPULSION (2) --- Armored Treads Medium Treads > --- UTILITY (6) ------ Signal Interpreter Terrain Scanner Seismic Detector Reaction Control System Hacking Suite > --- WEAPON (3) ------- (None) > --- INVENTORY (5) ---- Light Ion Engine Cesium-ion Thruster Small Storage Unit Structural Scanner Improved Grenade Launcher Peak State ------------ > --- POWER ------------ (None) > --- PROPULSION ------- Armored Treads Medium Treads > --- UTILITY ---------- Signal Interpreter Terrain Scanner Seismic Detector Reaction Control System Hacking Suite > --- WEAPON ----------- (None) > --- INVENTORY -------- Light Ion Engine Cesium-ion Thruster Small Storage Unit Structural Scanner Improved Grenade Launcher [Rating: 16] Favorites ----------- Power None Propulsion Light Treads Treads Light Treads Utility Signal Interpreter Device Seismic Detector Processor Signal Interpreter Hackware Hacking Suite Weapon Improved Grenade Launcher Launcher Improved Grenade Launcher Build | -11 -10 -9 -8 -7 -7 ------- Run | Jun Mat Mat Mat Fac Sto Slots Evolved 6 | . . 2 2 2 . Power 1 | . . . 1 . . Propulsion . | . . . . . . Utility 4 | . . 2 1 1 . Weapon 1 | . . . . 1 . Parts Attached 10 | 2 1 2 3 2 . Power . | . . . . . . Engine . | . . . . . . Core . | . . . . . . Reactor . | . . . . . . Propulsion 4 | 2 . . 1 1 . Treads 4 | 2 . . 1 1 . Leg . | . . . . . . Wheel . | . . . . . . Hover . | . . . . . . Flight . | . . . . . . Utility 5 | . 1 2 1 1 . Device 3 | . . 2 1 . . Storage . | . . . . . . Processor 1 | . 1 . . . . Hackware 1 | . . . . 1 . Protection . | . . . . . . Artifact . | . . . . . . Weapon 1 | . . . 1 . . Energy Gun . | . . . . . . Energy Cannon . | . . . . . . Ballistic Gun . | . . . . . . Ballistic Cannon . | . . . . . . Launcher 1 | . . . 1 . . Special Weapon . | . . . . . . Impact Weapon . | . . . . . . Slashing Weapon . | . . . . . . Piercing Weapon . | . . . . . . Special Melee Weapon . | . . . . . . Unidentified Prototypes . | . . . . . . Parts Lost . | . . . . . . Power . | . . . . . . Propulsion . | . . . . . . Utility . | . . . . . . Weapon . | . . . . . . Highest Loss Streak . | . . . . . . To Critical Strikes . | . . . . . . Average Slot Usage (%) 50 | . 28 42 55 52 . Treads 17 | . 28 22 18 15 . Device 20 | . . 9 27 23 . Processor 7 | . . 11 9 7 . Hackware 3 | . . . . 6 . Naked Turns . | . . . . . . Heaviest Build 3 | . . 2 3 3 . Greatest Support 28 | 20 3 3 3 28 . Greatest Overweight (x) . | . . . . . . Average Overweight (x) . | . . . . . . Largest Inventory Capacity 5 | 5 5 5 5 5 . Average Capacity 5 | 5 5 5 5 5 . Most Carried 5 | 3 3 3 5 5 . Average Carried 4 | 1 2 3 3 4 . Final Capacity 5 | 5 5 5 5 5 5 Final Carried 5 | 2 3 3 5 5 5 Class Distribution -------------------- 100% | Mutant Dominant Class ---------------- Mutant | -10/Materials Mutant | -9/Materials Mutant | -8/Materials Mutant | -7/Factory Mutant | -7/Storage Resources | -11 -10 -9 -8 -7 -7 ----------- Run | Jun Mat Mat Mat Fac Sto Matter Collected 220 | 220 . . . . . Remotely . | . . . . . . Salvage Created 27 | . . . 27 . . Parts 6 | . . . 6 . . Haulers Intercepted . | . . . . . . Recyclers Shooed . | . . . . . . Parts Field Recycled . | . . . . . . Retrieved Matter . | . . . . . . Parts Self-Destructed . | . . . . . . Prevented . | . . . . . . Kills | -11 -10 -9 -8 -7 -7 ------- Run | Jun Mat Mat Mat Fac Sto Combat Hostiles Destroyed 4 | . . . 4 . . AOE 4 | . . . 4 . . Classes Destroyed 1 | . . . 1 . . Swarmer 4 | . . . 4 . . Best Kill Streak 4 | . . . 4 . . Combat Bots Only 4 | . . . 4 . . Max Kills in Single Turn 4 | . . . 4 . . Gunslinging . | . . . . . . Exploded 4 | . . . 4 . . Melee . | . . . . . . Uniques/NPCs Destroyed . | . . . . . . Combat | -11 -10 -9 -8 -7 -7 -------- Run | Jun Mat Mat Mat Fac Sto Damage Taken 490 | . 14 54 299 123 . Core 86 | . . 16 52 18 . Absorbed by Shields . | . . . . . . Core Remaining (%) 96 | 100 100 96 90 . . Volleys Fired 1 | . . . 1 . . Largest 1 | . . . 1 . . Hottest 36 | . . . 36 . . Shots Fired 1 | . . . 1 . . Gun . | . . . . . . Cannon . | . . . . . . Launcher 1 | . . . 1 . . Special . | . . . . . . Kinetic . | . . . . . . Thermal . | . . . . . . Explosive 1 | . . . 1 . . Electromagnetic . | . . . . . . Robot Hit Streak 1 | . . . 1 . . Robot Miss Streak . | . . . . . . Penetration Max . | . . . . . . Secondary Targets . | . . . . . . Shots Hit Robots 1 | . . . 1 . . Core Hits 4 | . . . 4 . . Critical Kills . | . . . . . . Critical Parts Destroyed . | . . . . . . Critical Strikes . | . . . . . . Melee Attacks . | . . . . . . Impact . | . . . . . . Slashing . | . . . . . . Piercing . | . . . . . . Sneak Attacks . | . . . . . . Combat Hostiles . | . . . . . . Follow-up Attacks . | . . . . . . Damage Inflicted 291 | . . . 291 . . Guns . | . . . . . . Cannons . | . . . . . . Explosions 269 | . . . 269 . . Melee . | . . . . . . Ramming 22 | . . . 22 . . Kinetic . | . . . . . . Thermal . | . . . . . . Explosive 269 | . . . 269 . . Electromagnetic . | . . . . . . Impact . | . . . . . . Slashing . | . . . . . . Piercing . | . . . . . . Highest Corruption 1 | . . 1 . 1 . Average Corruption 1 | . . 1 . 1 . Corruption Purged . | . . . . . . Corruption Blocked . | . . . . . . Overload Shots . | . . . . . . Overflow Damage 24 | . . . 24 . . Projectiles . | . . . . . . Explosions 24 | . . . 24 . . Melee . | . . . . . . Knockbacks . | . . . . . . Impact . | . . . . . . Kinetic . | . . . . . . Secondary . | . . . . . . Self-Inflicted Damage 9 | . . . 9 . . Shots . | . . . . . . Rammed 6 | . . . 6 . . Targets Rammed 6 | . . . 6 . . Kicked . | . . . . . . Crushed . | . . . . . . Highest Temperature . | . . . . . . Average Temperature . | . . . . . . Received Heat Transfer 120 | . 9 21 27 63 . Siege Activations . | . . . . . . Robots Corrupted . | . . . . . . Combat Hostiles . | . . . . . . Parts Fried . | . . . . . . Impact Corruptions . | . . . . . . Robots Melted . | . . . . . . Combat Hostiles . | . . . . . . Parts Melted . | . . . . . . Heat Transferred . | . . . . . . Parts Sabotaged . | . . . . . . Parts Stolen . | . . . . . . Parts Stripped . | . . . . . . Power Chain Reactions . | . . . . . . Missiles Intercepted . | . . . . . . Alert | -11 -10 -9 -8 -7 -7 ------- Run | Jun Mat Mat Mat Fac Sto Peak Influence 217 | . . 45 217 127 . Initial 98 | . . . 18 98 57 Average 78 | . . 16 64 109 . Maximum Alert Level 1 | . . . 1 . . Low Security (%) 99 | 100 100 100 95 100 . Level 1 . | . . . 4 . . Level 2 . | . . . . . . Level 3 . | . . . . . . Level 4 . | . . . . . . Level 5 . | . . . . . . High Security . | . . . . . . Max Security . | . . . . . . Squads Dispatched 4 | . . 2 . 2 . Investigation 4 | . . 2 . 2 . Extermination . | . . . . . . Reinforcement . | . . . . . . Assault . | . . . . . . Garrison . | . . . . . . Intercept . | . . . . . . Searches Triggered . | . . . . . . Construction Impeded . | . . . . . . Haulers Reinforced . | . . . . . . Active Scanning Responses . | . . . . . . Cargo Convoy Interrupts . | . . . . . . Stealth | -11 -10 -9 -8 -7 -7 --------- Run | Jun Mat Mat Mat Fac Sto Distress Signals . | . . . . . . Communications Jammed . | . . . . . . Distress Signals . | . . . . . . Times Spotted 28 | . 2 7 15 4 . Peak Tracking Total 11 | . 2 9 11 3 . Tactical Retreats 1 | . . . 1 . . Traps | -11 -10 -9 -8 -7 -7 ------- Run | Jun Mat Mat Mat Fac Sto Traps Triggered 1 | . . 1 . . . Indirectly . | . . . . . . Trap Hack Attempts . | . . . . . . Triggered . | . . . . . . Disarmed . | . . . . . . Reprogrammed . | . . . . . . Reused . | . . . . . . Traps Extracted . | . . . . . . Installed . | . . . . . . Triggered . | . . . . . . Machines | -11 -10 -9 -8 -7 -7 ---------- Run | Jun Mat Mat Mat Fac Sto Machines Disabled . | . . . . . . Max in Single Turn . | . . . . . . Machines Repaired . | . . . . . . Machines Sabotaged . | . . . . . . Overloaded Fab Kills . | . . . . . . Hacking | -11 -10 -9 -8 -7 -7 --------- Run | Jun Mat Mat Mat Fac Sto Machines Accessed 5 | . . 2 . 3 . Terminals 3 | . . 2 . 1 . Fabricators 2 | . . . . 2 . Repair Stations . | . . . . . . Recycling Units . | . . . . . . Scanalyzers . | . . . . . . Garrison Access . | . . . . . . Total Hacks 10 | . . 5 . 5 . Successful 2 | . . . . 2 . Failed 8 | . . 5 . 3 . Catastrophic 6 | . . 4 . 2 . Database Lockouts . | . . . . . . Manual 5 | . . 5 . . . Terminals 7 | . . 5 . 2 . Fabricators 3 | . . . . 3 . Repair Stations . | . . . . . . Recycling Units . | . . . . . . Scanalyzers . | . . . . . . Garrison Access . | . . . . . . Terminal Hacks 1 | . . . . 1 . Branch Access Points 1 | . . . . 1 . Fabricator Hacks 1 | . . . . 1 . Network Status 1 | . . . . 1 . Repair Station Hacks . | . . . . . . Recycling Unit Hacks . | . . . . . . Scanalyzer . | . . . . . . Garrison Access Hacks . | . . . . . . Unauthorized Hacks . | . . . . . . Terminals . | . . . . . . Fabricators . | . . . . . . Repair Stations . | . . . . . . Recycling Units . | . . . . . . Scanalyzers . | . . . . . . Garrison Access . | . . . . . . Data Cores Recovered . | . . . . . . Used . | . . . . . . Hacking Detections 5 | . . 2 . 3 . Full Trace Events 4 | . . 2 . 2 . Feedback Events 1 | . . . . 1 . Corruption 1 | . . . . 1 . Feedback Blocked . | . . . . . . Robot Schematics Acquired . | . . . . . . Robots Built . | . . . . . . Authchips . | . . . . . . Time . | . . . . . . Total Robot Build Rating . | . . . . . . Part Schematics Acquired . | . . . . . . Parts Built . | . . . . . . Authchips . | . . . . . . Time . | . . . . . . Total Part Build Rating . | . . . . . . Parts Repaired . | . . . . . . Time . | . . . . . . Parts Recycled . | . . . . . . Recycled Matter . | . . . . . . Retrieved Matter . | . . . . . . Retrieved Components . | . . . . . . Parts Scanalyzed . | . . . . . . Part Schematics Acquired . | . . . . . . Parts Damaged . | . . . . . . Bothacking | -11 -10 -9 -8 -7 -7 ------------ Run | Jun Mat Mat Mat Fac Sto Used RIF Installer . | . . . . . . Robots Hacked . | . . . . . . Non-combat . | . . . . . . Combat . | . . . . . . Robot Hacks Applied . | . . . . . . Relay Couplers Released . | . . . . . . Fabnet Peak Effective % . | . . . . . . Robots Rewired 2 | . . . . 2 . Allies Hacked . | . . . . . . Hacks Repelled . | . . . . . . Allies | -11 -10 -9 -8 -7 -7 -------- Run | Jun Mat Mat Mat Fac Sto Total Allies 2 | . . . . 2 . Largest Group 2 | . . . . 2 . Highest-Rated Group 64 | . . . . 64 . Highest-Rated Ally 32 | . . . . 32 . Total Orders . | . . . . . . Ally Attacks 1 | . . . . 1 . Total Damage 35 | . . . . 35 . Kills . | . . . . . . Allies Corrupted . | . . . . . . Allies Melted . | . . . . . . Intel | -11 -10 -9 -8 -7 -7 ------- Run | Jun Mat Mat Mat Fac Sto Robot Analysis Total . | . . . . . . Derelict Logs Recovered . | . . . . . . Drone Launches . | . . . . . . Drone Recoveries . | . . . . . . Exploration | -11 -10 -9 -8 -7 -7 ------------- Run | Jun Mat Mat Mat Fac Sto Turns Passed 561 | 33 33 67 91 337 . Spaces Moved 706 | 44 61 127 151 323 . Core 700 | 40 61 127 151 321 . Treads 6 | 4 . . . 2 . Legs . | . . . . . . Wheels . | . . . . . . Hover . | . . . . . . Flight . | . . . . . . Fastest Speed 50 | 50 50 50 50 50 . Average Speed 50 | 60 50 50 50 50 . Slowest Speed 160 | 160 50 50 50 160 . Overloaded Moves . | . . . . . . Propulsion Burnouts . | . . . . . . Robots Hopped . | . . . . . . Cave-ins Triggered . | . . . . . . Exploration Rate (%) 11 | 3 17 17 21 10 2 Regions Visited 5 Branch Regions 1 Pre-discovered Areas . | . . . . . . Known Exits Taken 4 | . 1 1 1 1 . Unknown Exits Taken 1 | 1 . . . . . Scrap Searched . | . . . . . . Spaces Dug . | . . . . . . Terrain Destroyed 8 | . . . 8 . . Melee . | . . . . . . Projectile . | . . . . . . AOE 8 | . . . 8 . . Terrain Rammed . | . . . . . . Walls Destroyed . | . . . . . . Machines Disabled . | . . . . . . Actions | -11 -10 -9 -8 -7 -7 --------- Run | Jun Mat Mat Mat Fac Sto Total 899 | 49 62 128 164 496 . Wait 141 | . . . 2 139 . Move 701 | 43 60 126 150 322 . Hop . | . . . . . . Pick Up 6 | 3 1 . 1 1 . Fast Attach 7 | 2 1 2 1 1 . Attach 1 | . . . 1 . . Detach 1 | . . . 1 . . Swap 2 | . . . 1 1 . Drop 3 | 1 . . . 2 . Fire 1 | . . . 1 . . Melee . | . . . . . . Ram 6 | . . . 6 . . Kick . | . . . . . . Crush . | . . . . . . Escape Stasis . | . . . . . . Rewire 30 | . . . . 30 . Trap . | . . . . . . Miscellaneous . | . . . . . . Route ------- -11/Junkyard -10/Materials -9/Materials -8/Materials -7/Factory (discovered 4 exits: *Sto x2 / Low x2) -7/Storage History --------- Turn | Location | Event 24 | -11/Junkyard | Discovered new exit (range 15) 34 | -11/Junkyard | Entered Materials 53 | -10/Materials | Discovered new exit (range 9) 67 | -10/Materials | Identified exit to Materials 67 | -10/Materials | Entered another Materials area 67 | -9/Materials | Evolved 2 slots: Utility x2 126 | -9/Materials | Discovered new exit (range 16) 133 | -9/Materials | Identified exit to Materials 134 | -9/Materials | Entered another Materials area 134 | -8/Materials | Evolved 2 slots: Power x1, Utility x1 219 | -8/Materials | Discovered new exit (range 8) 225 | -8/Materials | Identified exit to Factory 225 | -8/Materials | Entered Factory 225 | -7/Factory | Evolved 2 slots: Utility x1, Weapon x1 303 | -7/Factory | Build established: Mutant 351 | -7/Factory | Identified exit to Storage 351 | -7/Factory | Identified exit to Lower Caves 562 | -7/Factory | Entered Storage 562 | -7/Storage | Accompanied by 1 ally 562 | -7/Storage | Self-destructed Last Messages --------------- 00406_ Attempting to rewire P-60 Hacker. 00406_ P-60 Hacker cannot be rewired. 00407_ Attempting to rewire P-60 Hacker. 00407_ P-60 Hacker cannot be rewired. 00408_ Attempting to rewire P-60 Hacker. 00408_ P-60 Hacker cannot be rewired. 00409_ Attempting to rewire P-60 Hacker. 00409_ P-60 Hacker cannot be rewired. 00409_ K-01 Serf latches onto P-60 Hacker. 00409_ K-01 Serf pushes P-60 Hacker. 00410_ K-01 Serf latches onto H-55 Commando. 00410_ K-01 Serf pushes H-55 Commando. 00427_ Attempting to rewire Y-54 Guardian. 00435_ Y-54 Guardian rewired. 00436_ Attempting to rewire Y-54 Guardian. 00442_ Y-54 Guardian rewired. 00484_ K-01 Serf cleans the Fusion Modulator. 00492_ ALERT: All DSF locations entering lockdown mode. LOCATION=STORAGE GOAL=ESCAPE Map ----- +----------------------------------------------------+ | | | | | | | | | | | | | | | | | | | | | | | | | | | | | | | | | | | | | ?????????????????????????????????? | | ?????????????????????????????????? | | ?????????????????????????????????? | | ?????????????????????????????????? | | ?????????????????????????????????? | | ???????????????????????#####?????? | | ???????????????????????# #?????? | | ???????????????????????# @ #?????? | | ???????????????????????# #?????? | | ???????????????????????# #?????? | | ???????????????????????# #?????? | | ???????????????????????/Y +?????? | | ???????????????????????# #?????? | | ???????????????????????# #?????? | | ???????????????????????# #?????? | | ???????????????????????# #?????? | | ???????????????????????# #?????? | | ???????????????????????# #?????? | | ???????????????????????# #?????? | | ???????????????????????# #?????? | | ???????????????????????? ??????? | | ???????????????????????? ??????? | | ???????????????????????? ??????? | | ?????????????????????????????????? | | ?????????????????????????????????? | | ?????????????????????????????????? | | ?????????????????????????????????? | | ?????????????????????????????????? | | ?????????????????????????????????? | | ?????????????????????????????????? | | ?????????????????????????????????? | | ?????????????????????????????????? | +----------------------------------------------------+ Best States ------------- Heat Dissipation 34 Energy Generation 5 Energy Capacity 100 Matter Stores 300 Matter Capacity 300 Sight Range 16 Terrain Scan Range 14 Terrain Scan Density 10 Evasion (%) 58 Recoil Reduction 1 Offensive Hacking 10 Item Schematics ----------------- None Robot Schematics ------------------ None Fabricated ------------ Nothing Alien Tech Used ----------------- None Achievements -------------- None Challenges ------------ None Game ------ Seed EnergyBiomechanicalLeg Manual? 0 Play Time 00:10:19 Cumulative 152.0 hours Start 2023.04.27 @ 17:41:45 End 2023.04.27 @ 18:31:04 Sessions 1 Manual Loads 0 Difficulty Rogue Special Mode None Game No. 445 Rogue 445 Adventurer 0 Explorer 0 Win Type - Total 7 Types 6/0/0/1/0/0/0/0/0 Lore% 66 Gallery% 71 Achievement% 61 Wizard Run 0 Options --------- ASCII 0 Keyboard 0 Movement Numpad Keybinds 0 Fullscreen 1 Font 16/SmallcapsGlow Map View 75x55 Tactical HUD 1 Map Filters NONE Filters NONE Steam 1 RUN: 60bd6ad9-7fdd-4ded-9677-82ea2e266df9